[Event "Late-Titled-Tuesday-Blitz-October-03-2023"]
[Site "Chess.com"]
[Date "2023.10.03"]
[Round "5"]
[White "TheMagician"]
[Black "Aswathchess"]
[Result "1/2-1/2"]
[WhiteElo "2219"]
[BlackElo "2595"]
[TimeControl "180+1"]
[EndTime "14:55:09 PDT"]
[Termination "Game drawn by repetition"]

1. d4 {[%clk 0:02:47.6]} 1... Nf6 {[%clk 0:02:58.6]} 2. c4 {[%clk 0:02:47.1]}
2... e6 {[%clk 0:02:58.6]} 3. Nf3 {[%clk 0:02:46]} 3... d5 {[%clk 0:02:57.4]} 4.
e3 {[%clk 0:02:45.4]} 4... Nbd7 {[%clk 0:02:53.7]} 5. Nc3 {[%clk 0:02:44.9]}
5... g6 {[%clk 0:02:49.9]} 6. b3 {[%clk 0:02:29.2]} 6... Bg7 {[%clk 0:02:49.3]}
7. Bb2 {[%clk 0:02:29.1]} 7... O-O {[%clk 0:02:49.3]} 8. Be2 {[%clk 0:02:25.8]}
8... b6 {[%clk 0:02:48.7]} 9. cxd5 {[%clk 0:02:21.1]} 9... exd5 {[%clk
0:02:48.3]} 10. O-O {[%clk 0:02:19.6]} 10... Re8 {[%clk 0:02:48]} 11. a4 {[%clk
0:02:17.5]} 11... Bb7 {[%clk 0:02:39.5]} 12. b4 {[%clk 0:02:17.3]} 12... Bf8
{[%clk 0:02:25.9]} 13. Ba3 {[%clk 0:02:09.7]} 13... a5 {[%clk 0:02:24.8]} 14.
bxa5 {[%clk 0:02:06.7]} 14... Bxa3 {[%clk 0:02:23.9]} 15. Rxa3 {[%clk
0:02:05.2]} 15... Rxa5 {[%clk 0:02:23.2]} 16. Nd2 {[%clk 0:02:01.2]} 16... Qe7
{[%clk 0:02:21.7]} 17. Ra1 {[%clk 0:01:48.6]} 17... c5 {[%clk 0:02:07.1]} 18.
Nb3 {[%clk 0:01:41.6]} 18... Raa8 {[%clk 0:02:06.9]} 19. dxc5 {[%clk 0:01:41.5]}
19... bxc5 {[%clk 0:02:07.8]} 20. Bb5 {[%clk 0:01:39.5]} 20... Red8 {[%clk
0:01:54.6]} 21. a5 {[%clk 0:01:37.6]} 21... Ne5 {[%clk 0:01:00.6]} 22. a6 {[%clk
0:01:33]} 22... Bc6 {[%clk 0:01:00.7]} 23. Bxc6 {[%clk 0:01:28.6]} 23... Nxc6
{[%clk 0:01:01.6]} 24. Na4 {[%clk 0:01:24.2]} 24... Ne4 {[%clk 0:01:01.1]} 25.
Qc1 {[%clk 0:01:01.9]} 25... c4 {[%clk 0:00:58.4]} 26. f3 {[%clk 0:00:40.3]}
26... Rxa6 {[%clk 0:00:34.9]} 27. fxe4 {[%clk 0:00:34.6]} 27... cxb3 {[%clk
0:00:35]} 28. exd5 {[%clk 0:00:26]} 28... Rxd5 {[%clk 0:00:34.2]} 29. Nc3 {[%clk
0:00:19.3]} 29... Rxa1 {[%clk 0:00:31.5]} 30. Qxa1 {[%clk 0:00:20.2]} 30...
Qxe3+ {[%clk 0:00:31.1]} 31. Kh1 {[%clk 0:00:20.4]} 31... Rd8 {[%clk 0:00:19.1]}
32. Qb2 {[%clk 0:00:14.6]} 32... Nd4 {[%clk 0:00:19.3]} 33. h3 {[%clk
0:00:12.7]} 33... h5 {[%clk 0:00:16.7]} 34. Rd1 {[%clk 0:00:12.5]} 34... Qe5
{[%clk 0:00:08.1]} 35. Ne2 {[%clk 0:00:10.3]} 35... Qxe2 {[%clk 0:00:03.7]} 36.
Qxe2 {[%clk 0:00:09.1]} 36... Nxe2 {[%clk 0:00:04.6]} 37. Rxd8+ {[%clk
0:00:09.6]} 37... Kg7 {[%clk 0:00:05.5]} 38. Rb8 {[%clk 0:00:10]} 38... Nd4
{[%clk 0:00:06.1]} 39. Rb4 {[%clk 0:00:10]} 39... Ne2 {[%clk 0:00:05.8]} 40.
Rxb3 {[%clk 0:00:10]} 40... Nd4 {[%clk 0:00:06.7]} 41. Rb7 {[%clk 0:00:09.7]}
41... Ne6 {[%clk 0:00:06.8]} 42. Kg1 {[%clk 0:00:10.6]} 42... h4 {[%clk
0:00:07.1]} 43. Ra7 {[%clk 0:00:11.1]} 43... g5 {[%clk 0:00:07.4]} 44. Ra4
{[%clk 0:00:11.9]} 44... Kg6 {[%clk 0:00:08]} 45. Ra6 {[%clk 0:00:12]} 45... Kf6
{[%clk 0:00:07.7]} 46. Kf2 {[%clk 0:00:12.3]} 46... Kg6 {[%clk 0:00:08.6]} 47.
Ke3 {[%clk 0:00:12.4]} 47... Kg7 {[%clk 0:00:08.9]} 48. Ke4 {[%clk 0:00:12.7]}
48... Kf6 {[%clk 0:00:09.1]} 49. Kd5 {[%clk 0:00:12.4]} 49... Kg6 {[%clk
0:00:09.3]} 50. Ra7 {[%clk 0:00:12.7]} 50... Kf6 {[%clk 0:00:09.4]} 51. Ke4
{[%clk 0:00:12.9]} 51... Kg6 {[%clk 0:00:09.4]} 52. Ke5 {[%clk 0:00:13.3]} 52...
Nf4 {[%clk 0:00:09.4]} 53. Ra6+ {[%clk 0:00:12.2]} 53... Kh5 {[%clk 0:00:09.5]}
54. Ra2 {[%clk 0:00:13.1]} 54... Kg6 {[%clk 0:00:08]} 55. Rd2 {[%clk 0:00:10.7]}
55... f6+ {[%clk 0:00:07.8]} 56. Ke4 {[%clk 0:00:10.7]} 56... Ne6 {[%clk
0:00:06.8]} 57. Rf2 {[%clk 0:00:09.7]} 57... Ng7 {[%clk 0:00:04.2]} 58. Kd5
{[%clk 0:00:09.5]} 58... Nf5 {[%clk 0:00:04.4]} 59. Ke6 {[%clk 0:00:08.4]} 59...
Nd4+ {[%clk 0:00:03.3]} 60. Ke7 {[%clk 0:00:08.7]} 60... Nf5+ {[%clk 0:00:03.9]}
61. Ke6 {[%clk 0:00:09.2]} 61... Nd4+ {[%clk 0:00:04.6]} 62. Ke7 {[%clk
0:00:09.8]} 62... Nf5+ {[%clk 0:00:05.2]} 63. Ke6 {[%clk 0:00:10.3]} 1/2-1/2

[Event "Late-Titled-Tuesday-Blitz-October-03-2023"]
[Site "Chess.com"]
[Date "2023.10.03"]
[Round "5"]
[White "KVAIDAN"]
[Black "geordie_derraugh"]
[Result "0-1"]
[WhiteElo "2273"]
[BlackElo "2517"]
[TimeControl "180+1"]
[EndTime "14:55:15 PDT"]
[Termination "geordie_derraugh won by checkmate"]

1. f4 {[%clk 0:03:00]} 1... d5 {[%clk 0:02:58.7]} 2. Nf3 {[%clk 0:02:59]} 2...
c5 {[%clk 0:02:59.4]} 3. e3 {[%clk 0:02:54.8]} 3... Nc6 {[%clk 0:02:59.5]} 4.
Bb5 {[%clk 0:02:47.3]} 4... a6 {[%clk 0:02:59.2]} 5. Bxc6+ {[%clk 0:02:40.1]}
5... bxc6 {[%clk 0:03:00.1]} 6. Ne5 {[%clk 0:02:40.4]} 6... Qd6 {[%clk
0:02:54.5]} 7. O-O {[%clk 0:02:40.5]} 7... g6 {[%clk 0:02:53.7]} 8. b3 {[%clk
0:02:40.3]} 8... f6 {[%clk 0:02:52.6]} 9. Nd3 {[%clk 0:02:38.4]} 9... c4 {[%clk
0:02:43.4]} 10. bxc4 {[%clk 0:02:35.8]} 10... dxc4 {[%clk 0:02:43.3]} 11. Ba3
{[%clk 0:02:36.3]} 11... Qd7 {[%clk 0:02:28.9]} 12. Nf2 {[%clk 0:02:36]} 12...
Bg7 {[%clk 0:02:28.4]} 13. Qe2 {[%clk 0:02:30.8]} 13... f5 {[%clk 0:02:18.5]}
14. c3 {[%clk 0:02:30.6]} 14... Qd5 {[%clk 0:02:15.3]} 15. Bc1 {[%clk
0:02:25.5]} 15... Nf6 {[%clk 0:02:12.4]} 16. Na3 {[%clk 0:02:24.9]} 16... Be6
{[%clk 0:02:12.4]} 17. Rb1 {[%clk 0:02:21.7]} 17... a5 {[%clk 0:02:12.5]} 18.
Rb7 {[%clk 0:02:21.5]} 18... c5 {[%clk 0:01:51.2]} 19. Rb5 {[%clk 0:02:00.6]}
19... Bd7 {[%clk 0:01:48.4]} 20. Rb1 {[%clk 0:01:54.2]} 20... Bc6 {[%clk
0:01:48.7]} 21. e4 {[%clk 0:01:48.3]} 21... fxe4 {[%clk 0:01:43.8]} 22. Nxc4
{[%clk 0:01:47.6]} 22... O-O {[%clk 0:01:31.3]} 23. Nb6 {[%clk 0:01:47.2]} 23...
Qxa2 {[%clk 0:01:31.3]} 24. Rb2 {[%clk 0:01:46.3]} 24... Qe6 {[%clk 0:01:30.4]}
25. Nxa8 {[%clk 0:01:45.7]} 25... Rxa8 {[%clk 0:01:28.9]} 26. Nd1 {[%clk
0:01:46.1]} 26... a4 {[%clk 0:01:18]} 27. Ne3 {[%clk 0:01:44.4]} 27... a3 {[%clk
0:01:18.4]} 28. Rb1 {[%clk 0:01:42.9]} 28... a2 {[%clk 0:01:10.8]} 29. Ra1
{[%clk 0:01:41.9]} 29... Qb3 {[%clk 0:01:11.1]} 30. Qc4+ {[%clk 0:01:37.2]}
30... Qxc4 {[%clk 0:01:11.1]} 31. Nxc4 {[%clk 0:01:37.3]} 31... Bb5 {[%clk
0:01:11.8]} 32. Ne5 {[%clk 0:01:16.2]} 32... Bxf1 {[%clk 0:01:00.1]} 33. Kxf1
{[%clk 0:01:17.1]} 33... Nd5 {[%clk 0:00:49.6]} 34. Bb2 {[%clk 0:01:08.3]} 34...
Nxf4 {[%clk 0:00:46.9]} 35. Nc4 {[%clk 0:00:47.2]} 35... Nd3 {[%clk 0:00:44.9]}
36. Ke2 {[%clk 0:00:47]} 36... Bh6 {[%clk 0:00:37.2]} 37. Ba3 {[%clk 0:00:42.1]}
37... Kf7 {[%clk 0:00:34.6]} 38. Rxa2 {[%clk 0:00:36.8]} 38... Nc1+ {[%clk
0:00:31]} 39. Kd1 {[%clk 0:00:35.3]} 39... Nxa2 {[%clk 0:00:30.4]} 40. Bxc5
{[%clk 0:00:36.2]} 40... Rd8 {[%clk 0:00:28]} 41. Bb6 {[%clk 0:00:34.5]} 41...
Rd5 {[%clk 0:00:23.2]} 42. Kc2 {[%clk 0:00:34.2]} 42... Ke6 {[%clk 0:00:21.8]}
43. h3 {[%clk 0:00:27.6]} 43... Rb5 {[%clk 0:00:20.4]} 44. g4 {[%clk 0:00:24.5]}
44... Kd5 {[%clk 0:00:17]} 45. Ne3+ {[%clk 0:00:19.1]} 45... Bxe3 {[%clk
0:00:17.3]} 46. Bxe3 {[%clk 0:00:16.5]} 46... Kc4 {[%clk 0:00:17.7]} 47. h4
{[%clk 0:00:16]} 47... Rb3 {[%clk 0:00:14]} 48. Bd4 {[%clk 0:00:15.1]} 48... Rb7
{[%clk 0:00:10.6]} 49. h5 {[%clk 0:00:15.4]} 49... gxh5 {[%clk 0:00:10.4]} 50.
gxh5 {[%clk 0:00:15.6]} 50... Kd5 {[%clk 0:00:10.9]} 51. h6 {[%clk 0:00:15.3]}
51... e5 {[%clk 0:00:10.9]} 52. Be3 {[%clk 0:00:15.1]} 52... Ke6 {[%clk
0:00:10.6]} 53. Bg5 {[%clk 0:00:15.3]} 53... Kf5 {[%clk 0:00:10.7]} 54. Be3
{[%clk 0:00:14.5]} 54... Rb8 {[%clk 0:00:10.2]} 55. Bc5 {[%clk 0:00:14]} 55...
Kg6 {[%clk 0:00:10.1]} 56. Be3 {[%clk 0:00:14]} 56... Kf5 {[%clk 0:00:05.5]} 57.
Bc5 {[%clk 0:00:13.4]} 57... Ke6 {[%clk 0:00:05.8]} 58. Be3 {[%clk 0:00:13.4]}
58... Kd5 {[%clk 0:00:06.4]} 59. Bg5 {[%clk 0:00:13.7]} 59... Kc4 {[%clk
0:00:06.2]} 60. Be3 {[%clk 0:00:14]} 60... Nb4+ {[%clk 0:00:02.6]} 61. cxb4
{[%clk 0:00:13.7]} 61... Rxb4 {[%clk 0:00:03.5]} 62. Bg5 {[%clk 0:00:13.5]}
62... Rb7 {[%clk 0:00:04.1]} 63. Bf6 {[%clk 0:00:12.7]} 63... Rb5 {[%clk
0:00:03.5]} 64. Bg7 {[%clk 0:00:12.7]} 64... Kd4 {[%clk 0:00:03.6]} 65. Bf6
{[%clk 0:00:12.8]} 65... Rc5+ {[%clk 0:00:03.9]} 66. Kd1 {[%clk 0:00:11.9]}
66... e3 {[%clk 0:00:04.5]} 67. dxe3+ {[%clk 0:00:10.2]} 67... Kxe3 {[%clk
0:00:05.4]} 68. Bg5+ {[%clk 0:00:09.7]} 68... Kf2 {[%clk 0:00:05]} 69. Be7
{[%clk 0:00:10.2]} 69... Rd5+ {[%clk 0:00:05.4]} 70. Kc2 {[%clk 0:00:09.7]}
70... e4 {[%clk 0:00:06]} 71. Bg5 {[%clk 0:00:08.7]} 71... Rxg5 {[%clk
0:00:05.9]} 72. Kc3 {[%clk 0:00:07.6]} 72... e3 {[%clk 0:00:06.3]} 73. Kd4
{[%clk 0:00:08.5]} 73... e2 {[%clk 0:00:07]} 74. Ke4 {[%clk 0:00:09.2]} 74...
e1=Q+ {[%clk 0:00:06.7]} 75. Kf4 {[%clk 0:00:10.1]} 75... Qe3# {[%clk
0:00:06.8]} 0-1

[Event "Late-Titled-Tuesday-Blitz-October-03-2023"]
[Site "Chess.com"]
[Date "2023.10.03"]
[Round "5"]
[White "Iball95"]
[Black "BillieKimbah"]
[Result "1/2-1/2"]
[WhiteElo "2776"]
[BlackElo "2963"]
[TimeControl "180+1"]
[EndTime "14:55:22 PDT"]
[Termination "Game drawn - insufficient material"]

1. e4 {[%clk 0:03:00]} 1... c6 {[%clk 0:03:00.5]} 2. d4 {[%clk 0:02:59.3]} 2...
d5 {[%clk 0:03:01.1]} 3. exd5 {[%clk 0:03:00.2]} 3... cxd5 {[%clk 0:03:01.1]} 4.
c4 {[%clk 0:03:00.8]} 4... Nf6 {[%clk 0:03:01]} 5. Nc3 {[%clk 0:03:01.3]} 5...
e6 {[%clk 0:03:00.7]} 6. c5 {[%clk 0:03:01.8]} 6... b6 {[%clk 0:02:47.7]} 7. b4
{[%clk 0:03:00.9]} 7... a5 {[%clk 0:02:47.6]} 8. Na4 {[%clk 0:03:01.4]} 8...
Nbd7 {[%clk 0:01:37.6]} 9. Bb5 {[%clk 0:02:57.1]} 9... axb4 {[%clk 0:01:36.1]}
10. c6 {[%clk 0:02:46.3]} 10... Bd6 {[%clk 0:01:34.9]} 11. Nf3 {[%clk
0:02:41.8]} 11... O-O {[%clk 0:01:34.4]} 12. cxd7 {[%clk 0:02:42.2]} 12... Nxd7
{[%clk 0:01:25.4]} 13. O-O {[%clk 0:02:36.2]} 13... Ra5 {[%clk 0:01:25.1]} 14.
Qe2 {[%clk 0:02:30.5]} 14... Qc7 {[%clk 0:01:22.3]} 15. Bd2 {[%clk 0:02:25.8]}
15... Qa7 {[%clk 0:01:18.8]} 16. Nb2 {[%clk 0:01:48]} 16... Rxa2 {[%clk
0:01:17.8]} 17. Rxa2 {[%clk 0:01:47.4]} 17... Qxa2 {[%clk 0:01:18.7]} 18. Na4
{[%clk 0:01:38.7]} 18... Nf6 {[%clk 0:01:10.9]} 19. Bg5 {[%clk 0:01:09.8]} 19...
Qxe2 {[%clk 0:01:07.1]} 20. Bxe2 {[%clk 0:01:10.7]} 20... Ne4 {[%clk 0:01:07.7]}
21. Nxb6 {[%clk 0:01:04.2]} 21... Bb7 {[%clk 0:01:00.3]} 22. Rb1 {[%clk
0:00:55.3]} 22... Nc3 {[%clk 0:00:52.8]} 23. Rb2 {[%clk 0:00:55.6]} 23... Bc6
{[%clk 0:00:52.9]} 24. Ne5 {[%clk 0:00:40.5]} 24... Rb8 {[%clk 0:00:21.9]} 25.
Nxc6 {[%clk 0:00:26.5]} 25... Rxb6 {[%clk 0:00:22.2]} 26. Na5 {[%clk 0:00:26.9]}
26... Rb8 {[%clk 0:00:13.8]} 27. Bd3 {[%clk 0:00:21.9]} 27... Ra8 {[%clk
0:00:13.7]} 28. Nb3 {[%clk 0:00:22]} 28... Ra3 {[%clk 0:00:13.6]} 29. Bc2 {[%clk
0:00:17.8]} 29... e5 {[%clk 0:00:13.1]} 30. Be3 {[%clk 0:00:16.1]} 30... g6
{[%clk 0:00:08.2]} 31. f3 {[%clk 0:00:16.3]} 31... f5 {[%clk 0:00:08]} 32. Kf2
{[%clk 0:00:14.1]} 32... f4 {[%clk 0:00:08]} 33. Bc1 {[%clk 0:00:14.9]} 33... e4
{[%clk 0:00:07.5]} 34. fxe4 {[%clk 0:00:14.8]} 34... dxe4 {[%clk 0:00:08.4]} 35.
Nc5 {[%clk 0:00:15.7]} 35... e3+ {[%clk 0:00:07.9]} 36. Kf3 {[%clk 0:00:16.2]}
36... e2 {[%clk 0:00:06.8]} 37. Kf2 {[%clk 0:00:16.7]} 37... f3 {[%clk 0:00:07]}
38. Bd2 {[%clk 0:00:16.5]} 38... Nd1+ {[%clk 0:00:06]} 39. Ke1 {[%clk 0:00:12]}
39... Nxb2 {[%clk 0:00:06.3]} 40. gxf3 {[%clk 0:00:12.6]} 40... Bxh2 {[%clk
0:00:04.1]} 41. Kxe2 {[%clk 0:00:12.7]} 41... Nc4 {[%clk 0:00:04.1]} 42. Bxb4
{[%clk 0:00:12.7]} 42... Re3+ {[%clk 0:00:03.9]} 43. Kf2 {[%clk 0:00:13.4]}
43... Bf4 {[%clk 0:00:03.6]} 44. Bb3 {[%clk 0:00:13.1]} 44... Rxb3 {[%clk
0:00:03.3]} 45. Nxb3 {[%clk 0:00:14]} 45... Nb2 {[%clk 0:00:03.3]} 46. Ke2
{[%clk 0:00:14]} 46... Nc4 {[%clk 0:00:03.8]} 47. Kd3 {[%clk 0:00:13.8]} 47...
Nb6 {[%clk 0:00:04.2]} 48. Ke4 {[%clk 0:00:14.5]} 48... Bc7 {[%clk 0:00:04.2]}
49. d5 {[%clk 0:00:14.4]} 49... Kf7 {[%clk 0:00:04.8]} 50. Nd4 {[%clk
0:00:15.3]} 50... h5 {[%clk 0:00:04.7]} 51. Ne6 {[%clk 0:00:15.7]} 51... Bb8
{[%clk 0:00:03.8]} 52. f4 {[%clk 0:00:16.4]} 52... Nd7 {[%clk 0:00:03.7]} 53.
Ng5+ {[%clk 0:00:16.5]} 53... Ke8 {[%clk 0:00:03.8]} 54. d6 {[%clk 0:00:15.2]}
54... h4 {[%clk 0:00:02.7]} 55. Kd5 {[%clk 0:00:14.4]} 55... Nf6+ {[%clk
0:00:03]} 56. Ke6 {[%clk 0:00:15.1]} 56... Nd7 {[%clk 0:00:03.7]} 57. Bc3 {[%clk
0:00:14.7]} 57... Ba7 {[%clk 0:00:03.9]} 58. Bb4 {[%clk 0:00:14.2]} 58... Be3
{[%clk 0:00:03.9]} 59. Nh3 {[%clk 0:00:13.9]} 59... Nf8+ {[%clk 0:00:03.8]} 60.
Kf6 {[%clk 0:00:14.6]} 60... Bd4+ {[%clk 0:00:04.2]} 61. Kg5 {[%clk 0:00:13.8]}
61... Kd7 {[%clk 0:00:04.8]} 62. f5 {[%clk 0:00:14.4]} 62... Be3+ {[%clk
0:00:03.5]} 63. Kg4 {[%clk 0:00:14.6]} 63... gxf5+ {[%clk 0:00:03.8]} 64. Kxf5
{[%clk 0:00:15.5]} 64... Bd4 {[%clk 0:00:03.8]} 65. Kg4 {[%clk 0:00:16.2]} 65...
Ne6 {[%clk 0:00:03.6]} 66. Kxh4 {[%clk 0:00:16.2]} 66... Bc5 {[%clk 0:00:04.4]}
67. Bxc5 {[%clk 0:00:16.5]} 67... Nxc5 {[%clk 0:00:05.3]} 68. Kg4 {[%clk
0:00:17]} 68... Kxd6 {[%clk 0:00:06.2]} 1/2-1/2

[Event "Late-Titled-Tuesday-Blitz-October-03-2023"]
[Site "Chess.com"]
[Date "2023.10.03"]
[Round "5"]
[White "ameetghasi100"]
[Black "Msb2"]
[Result "0-1"]
[WhiteElo "2715"]
[BlackElo "3061"]
[TimeControl "180+1"]
[EndTime "14:55:29 PDT"]
[Termination "Msb2 won on time"]

1. Nf3 {[%clk 0:03:00.9]} 1... d5 {[%clk 0:03:00.3]} 2. g3 {[%clk 0:02:59.6]}
2... e6 {[%clk 0:03:00.6]} 3. Bg2 {[%clk 0:03:00.1]} 3... Nf6 {[%clk 0:03:01.5]}
4. O-O {[%clk 0:03:00.7]} 4... Bd6 {[%clk 0:03:02.2]} 5. d3 {[%clk 0:03:01.3]}
5... O-O {[%clk 0:03:02.7]} 6. Nc3 {[%clk 0:03:01.8]} 6... e5 {[%clk 0:02:53.9]}
7. e4 {[%clk 0:03:02]} 7... d4 {[%clk 0:02:53.9]} 8. Nb1 {[%clk 0:03:01.6]} 8...
c5 {[%clk 0:02:53.7]} 9. a4 {[%clk 0:03:01.6]} 9... Nc6 {[%clk 0:02:49.8]} 10.
Na3 {[%clk 0:03:01.6]} 10... Bc7 {[%clk 0:02:48.7]} 11. Nc4 {[%clk 0:02:53.2]}
11... Be6 {[%clk 0:02:44.8]} 12. Ng5 {[%clk 0:02:53]} 12... Bxc4 {[%clk
0:02:41.8]} 13. dxc4 {[%clk 0:02:53.1]} 13... h6 {[%clk 0:02:42.7]} 14. Nh3
{[%clk 0:02:53]} 14... Qc8 {[%clk 0:02:30.6]} 15. f3 {[%clk 0:02:50.4]} 15...
Qe6 {[%clk 0:02:29.5]} 16. b3 {[%clk 0:02:49.7]} 16... Rad8 {[%clk 0:02:28.1]}
17. Nf2 {[%clk 0:02:48.8]} 17... Ba5 {[%clk 0:02:27.8]} 18. Bh3 {[%clk
0:02:45.3]} 18... Qe7 {[%clk 0:02:28.1]} 19. Nd3 {[%clk 0:02:45.4]} 19... Bc3
{[%clk 0:02:24]} 20. Rb1 {[%clk 0:02:22.7]} 20... Nb4 {[%clk 0:02:24.4]} 21. Qe2
{[%clk 0:02:21.1]} 21... Na2 {[%clk 0:02:16.8]} 22. Ba3 {[%clk 0:02:11.3]} 22...
Bb4 {[%clk 0:02:08.7]} 23. Bxb4 {[%clk 0:02:06.1]} 23... cxb4 {[%clk 0:02:07.8]}
24. Qd2 {[%clk 0:01:47.7]} 24... Nc3 {[%clk 0:02:07.3]} 25. Rbe1 {[%clk
0:01:48]} 25... Rfe8 {[%clk 0:02:07.3]} 26. Bf5 {[%clk 0:01:42.7]} 26... a5
{[%clk 0:02:05.4]} 27. h4 {[%clk 0:01:40.6]} 27... g6 {[%clk 0:01:59.8]} 28. Bh3
{[%clk 0:01:26.6]} 28... Kg7 {[%clk 0:02:00.2]} 29. Rf2 {[%clk 0:01:24]} 29...
Qc7 {[%clk 0:01:54.7]} 30. Kg2 {[%clk 0:01:21.9]} 30... Nd7 {[%clk 0:01:49]} 31.
Bxd7 {[%clk 0:01:13.5]} 31... Rxd7 {[%clk 0:01:49.9]} 32. h5 {[%clk 0:01:08.7]}
32... Qc6 {[%clk 0:01:33.5]} 33. Rh1 {[%clk 0:00:51.9]} 33... g5 {[%clk
0:01:27]} 34. g4 {[%clk 0:00:38.6]} 34... Nxe4 {[%clk 0:01:27.3]} 35. fxe4
{[%clk 0:00:39.5]} 35... Qxe4+ {[%clk 0:01:28.2]} 36. Kg1 {[%clk 0:00:36.9]}
36... Qxg4+ {[%clk 0:01:28.4]} 37. Rg2 {[%clk 0:00:37.5]} 37... Qf5 {[%clk
0:01:15]} 38. Rf2 {[%clk 0:00:34]} 38... Qh7 {[%clk 0:01:15.4]} 39. Kg2 {[%clk
0:00:24.4]} 39... b6 {[%clk 0:01:07.9]} 40. Rhf1 {[%clk 0:00:17.5]} 40... e4
{[%clk 0:01:08.5]} 41. Qe2 {[%clk 0:00:17.8]} 41... Rde7 {[%clk 0:01:02.9]} 42.
Ne1 {[%clk 0:00:17.1]} 42... Kg8 {[%clk 0:00:47.9]} 43. Rf6 {[%clk 0:00:15.6]}
43... d3 {[%clk 0:00:31.5]} 44. Qe3 {[%clk 0:00:15.1]} 44... d2 {[%clk
0:00:19.8]} 45. Qxd2 {[%clk 0:00:15.2]} 45... e3 {[%clk 0:00:20.7]} 46. Qe2
{[%clk 0:00:15.9]} 46... Qe4+ {[%clk 0:00:20.5]} 47. Qf3 {[%clk 0:00:14.5]}
47... e2 {[%clk 0:00:18.3]} 48. Rf2 {[%clk 0:00:14.7]} 48... Qxf3+ {[%clk
0:00:05.9]} 49. R2xf3 {[%clk 0:00:13.9]} 49... Rd8 {[%clk 0:00:05.6]} 50. Rd3
{[%clk 0:00:12.9]} 50... Rde8 {[%clk 0:00:06.3]} 51. Kf2 {[%clk 0:00:13.1]}
51... Re4 {[%clk 0:00:06.5]} 52. Rdf3 {[%clk 0:00:10.3]} 52... Rh4 {[%clk
0:00:06.6]} 53. Rxf7 {[%clk 0:00:07.9]} 53... Rh1 {[%clk 0:00:06.8]} 54. R7f6
{[%clk 0:00:04.8]} 54... Rf1+ {[%clk 0:00:06.7]} 55. Kg2 {[%clk 0:00:04.7]}
55... Rxe1 {[%clk 0:00:07.2]} 56. Rg6+ {[%clk 0:00:05]} 56... Kh7 {[%clk
0:00:06.9]} 57. Rf7+ {[%clk 0:00:04.9]} 57... Kh8 {[%clk 0:00:07.5]} 58. Rf2
{[%clk 0:00:02.5]} 58... Rg1+ {[%clk 0:00:07.6]} 59. Kxg1 {[%clk 0:00:03.2]}
59... e1=Q+ {[%clk 0:00:08.5]} 60. Kg2 {[%clk 0:00:03.7]} 60... Qe4+ {[%clk
0:00:09.2]} 61. Kh2 {[%clk 0:00:04.4]} 61... Qh4+ {[%clk 0:00:09.5]} 62. Kg2
{[%clk 0:00:04.9]} 62... Qxh5 {[%clk 0:00:10.4]} 63. Rgf6 {[%clk 0:00:04.8]}
63... g4 {[%clk 0:00:10]} 64. R6f5 {[%clk 0:00:04.9]} 64... Qh3+ {[%clk
0:00:10.4]} 65. Kg1 {[%clk 0:00:05.1]} 65... Re1+ {[%clk 0:00:11.3]} 66. Rf1
{[%clk 0:00:05.4]} 66... Qg3+ {[%clk 0:00:12]} 67. Kh1 {[%clk 0:00:05.7]} 67...
Qh3+ {[%clk 0:00:12.9]} 68. Kg1 {[%clk 0:00:05]} 68... Rxf1+ {[%clk 0:00:13.8]}
69. Rxf1 {[%clk 0:00:05.6]} 69... g3 {[%clk 0:00:14.7]} 70. Rf8+ {[%clk
0:00:05.4]} 70... Kg7 {[%clk 0:00:15]} 71. Rf3 {[%clk 0:00:06.3]} 71... Qh2+
{[%clk 0:00:15.4]} 72. Kf1 {[%clk 0:00:07.2]} 72... g2+ {[%clk 0:00:16.2]} 73.
Ke2 {[%clk 0:00:08.1]} 73... g1=Q+ {[%clk 0:00:17.1]} 74. Kd3 {[%clk 0:00:08.4]}
74... Qd1+ {[%clk 0:00:17.3]} 75. Ke4 {[%clk 0:00:08.6]} 75... Qhxc2+ {[%clk
0:00:17.6]} 76. Ke5 {[%clk 0:00:09.5]} 76... Qxf3 {[%clk 0:00:17]} 77. c5 {[%clk
0:00:05.4]} 77... Qxc5+ {[%clk 0:00:16.7]} 78. Ke6 {[%clk 0:00:05.4]} 78...
Qxb3+ {[%clk 0:00:17.1]} 79. Kd7 {[%clk 0:00:05.4]} 79... Qxa4+ {[%clk
0:00:17.6]} 0-1